bitfinex/quotes_SOLUSD_20260118
["timestamp","ask_amount","ask_price","bid_price","bid_amount"]
[1768752985333,1.5070367,142.16,142.14,1.32546567]
[1768752986833,3.63666454,142.16,142.13,1.35546567]
[1768752987011,1.5070367,142.16,142.13,1.35546567]
[1768752987211,3.63666454,142.16,142.13,1.35546567]
[1768752988731,1.5070367,142.16,142.13,1.35546567]
[1768752988910,2.22962784,142.16,142.14,1.35546567]
[1768752989118,0.1,142.16,142.14,1.35546567]
[1768752992569,2.22962784,142.16,142.14,1.35546567]
[1768752998357,3.57520647,142.16,142.13,1.39432072]
[1768752999756,3.57520647,142.16,142.13,8.4299855]
[1768753001762,0.1,142.16,142.14,1.39432072]
[1768753003160,1.44557863,142.16,142.14,1.39432072]
[1768753003463,1.44557863,142.16,142.13,7.03566478]
[1768753003757,3.57520647,142.16,142.13,7.03566478]
[1768753004255,3.57520647,142.16,142.11,24.62826488]
[1768753004965,3.57515085,142.16,142.11,24.62826488]
[1768753005471,3.57515085,142.16,142.13,8.430133]
[1768753006369,1.34557863,142.15,142.13,8.430133]
[1768753006576,1.34557863,142.15,142.12,7.03615659]
[1768753006875,3.47515085,142.15,142.12,8.43047731]
[1768753007365,3.47515085,142.14,142.12,7.03615659]
[1768753007740,3.47515085,142.14,142.12,1.39432072]
[1768753011145,1.34557863,142.12,142.09,1.39432072]
[1768753011352,2.12957222,142.11,142.09,1.39432072]
[1768753012267,3.47515085,142.12,142.09,1.39432072]
[1768753012985,1.34557863,142.12,142.09,1.39432072]
[1768753013285,2.12957222,142.11,142.09,1.39432072]
[1768753014675,3.47515085,142.12,142.09,1.39432072]
[1768753023389,1.29884598,142.13,142.1,1.40134867]
[1768753023575,3.4284182,142.13,142.1,1.40134867]
[1768753023777,3.4284182,142.15,142.11,1.40134867]
[1768753024090,2.12957222,142.15,142.11,1.40134867]
[1768753024390,18.9484182,142.16,142.12,1.40134867]
[1768753024590,25.98294896,142.16,142.12,1.40134867]
[1768753025090,1.29884598,142.15,142.12,1.40134867]
[1768753027601,8.33367473,142.15,142.12,1.40134867]
[1768753031212,10.46324695,142.15,142.12,1.40134867]
[1768753034618,1.29884598,142.14,142.12,1.40134867]
[1768753035905,1.29884598,142.14,142.12,1e-08]
[1768753037711,23.85337372,142.16,142.12,1e-08]
[1768753038716,0.1,142.16,142.13,1.34820914]
[1768753039218,0.1,142.16,142.14,1.34820914]
[1768753039515,0.1,142.16,142.14,1e-08]
[1768753039900,0.1,142.16,142.13,2.12957222]
[1768753040416,8.4332252,142.16,142.09,24.63227531]
[1768753040619,3.4284182,142.15,142.1,2.12957222]
[1768753040919,1.29884598,142.14,142.1,2.12957222]
[1768753041413,3.4284182,142.14,142.09,7.03779294]
[1768753041615,1.29884598,142.13,142.09,7.03779294]
[1768753041920,1.29884598,142.13,142.09,2.12957222]
[1768753042090,1.29884598,142.12,142.08,2.12957222]
[1768753043811,1.29884598,142.12,142.08,9.16768078]
[1768753050629,1.16534641,142.14,142.1,2.12957222]
[1768753051936,1.16534641,142.14,142.1,9.16642843]
[1768753054038,1.16534641,142.14,142.05,59.83808516]
[1768753054333,1.16534641,142.14,142.1,2.12957222]
[1768753055435,1.16534641,142.14,142.1,9.16650142]
[1768753060936,1.16534641,142.14,142.05,59.83808516]
[1768753061243,1.16534641,142.14,142.1,2.12957222]
[1768753062244,1.16534641,142.14,142.11,7.03680247]
[1768753062944,16.41425998,142.15,142.11,9.16637469]
[1768753063325,0.99425998,142.15,142.12,2.12957222]
[1768753064240,0.99425998,142.15,142.11,9.16637469]
[1768753065355,0.99425998,142.15,142.11,7.03680247]
[1768753065650,0.99425998,142.15,142.11,9.16637469]
[1768753066850,0.99425998,142.15,142.11,7.03680247]
[1768753067041,0.99425998,142.15,142.11,2.12959255]
[1768753077865,0.99425998,142.15,142.11,9.16604929]
[1768753078963,0.99425998,142.15,142.11,7.03645674]
[1768753079180,0.99425998,142.15,142.11,9.16604929]
[1768753080870,0.99425998,142.15,142.05,59.83808516]
[1768753081168,0.99425998,142.15,142.11,2.12959255]
[1768753081342,0.99425998,142.15,142.05,59.83808516]
[1768753081543,0.82540328,142.13,142.05,59.83808516]
[1768753081759,0.82540328,142.12,142.08,2.12959255]
[1768753081960,0.82540328,142.12,142.05,24.63921153]
[1768753082271,0.82540328,142.12,142.08,2.12959255]
[1768753082849,0.76540329,142.12,142.08,2.12959255]
[1768753083171,0.76540329,142.12,142.09,7.03779294]
[1768753085471,0.7054033,142.12,142.09,7.03779294]
[1768753091067,7.86138241,142.13,142.09,2.12959255]
[1768753091587,0.82540328,142.12,142.09,2.12959255]
[1768753093886,0.82540328,142.12,142.08,9.16752514]
[1768753095692,0.82540328,142.11,142.06,17.59750639]
[1768753095872,0.76540329,142.11,142.07,2.12959255]
[1768753096295,0.76540329,142.11,142.08,2.12959255]
[1768753097697,7.03705134,142.11,142.07,7.03850854]
[1768753097887,0.82540328,142.1,142.07,7.03850854]
[1768753098267,0.82540328,142.1,142.07,9.16810109]
[1768753101596,0.82540328,142.1,142.08,7.0382129]
[1768753116411,9.16609975,142.12,142.08,7.0382129]
[1768753116606,7.0365072,142.12,142.08,7.0382129]
[1768753116813,9.16609975,142.12,142.08,7.0382129]
[1768753118004,2.12959255,142.12,142.08,7.0382129]
[1768753118390,0.51405153,142.11,142.08,7.0382129]
[1768753134998,2.1307842,142.12,142.08,7.0382129]
[1768753136624,7.03482237,142.15,142.09,2.1307842]
[1768753136825,2.1307842,142.14,142.09,2.1307842]
[1768753137023,2.61249844,142.14,142.09,2.1307842]
[1768753137504,0.48171424,142.13,142.09,2.1307842]
[1768753138216,0.48171424,142.13,142.09,9.16809998]
[1768753139824,0.48171424,142.13,142.08,2.1307842]
[1768753141709,0.48171424,142.13,142.09,7.03779294]
[1768753144530,2.61249844,142.13,142.09,7.03779294]
[1768753145527,0.48171424,142.14,142.09,9.16857714]
[1768753145729,0.48171424,142.14,142.09,7.03779294]
[1768753145931,0.48171424,142.14,142.09,9.16857714]
[1768753146233,0.48171424,142.14,142.09,26.76305951]
[1768753148623,0.48171424,142.14,142.09,24.63227531]
[1768753148832,0.48171424,142.14,142.09,26.76305951]
[1768753153523,0.48171424,142.12,142.09,7.03779294]
[1768753153732,2.1307842,142.13,142.09,7.03779294]
[1768753154425,2.1307842,142.13,142.09,7.44989725]
[1768753155836,0.48171424,142.12,142.09,7.44989725]
[1768753156039,2.1307842,142.13,142.09,7.44989725]
[1768753158137,0.48171424,142.12,142.09,7.44989725]
[1768753158324,2.1307842,142.13,142.09,7.44989725]
[1768753158638,9.16622389,142.14,142.09,7.44989725]
[1768753158933,9.16565141,142.15,142.11,0.46585169]
[1768753159123,2.1307842,142.15,142.12,7.03630734]
[1768753159325,2.1307842,142.15,142.12,7.50215903]
[1768753160034,7.13448748,142.16,142.12,7.50215903]
[1768753160220,9.26527168,142.16,142.12,7.50215903]
[1768753160414,0.48171424,142.15,142.12,7.50215903]
[1768753167247,7.51655146,142.15,142.11,9.6371816]
[1768753167444,0.49376694,142.14,142.11,7.5063974]
[1768753167746,9.16562142,142.15,142.11,7.5063974]
[1768753169226,2.1307842,142.14,142.1,0.46978799]
[1768753169548,2.1307842,142.13,142.09,7.50740622]
[1768753169943,0.14264498,142.12,142.09,7.50740622]
[1768753170242,2.27342918,142.12,142.09,7.50740622]
[1768753170628,0.14264498,142.11,142.07,0.46978799]
[1768753170833,0.14264498,142.11,142.07,7.5084017]
[1768753170834,2.27342918,142.11,142.07,7.5084017]
[1768753171032,2.27342918,142.11,142.08,0.46978799]
[1768753172243,2.27342918,142.11,142.08,7.50803112]
[1768753172448,0.14264498,142.11,142.08,7.50803112]
[1768753174046,2.27342918,142.11,142.08,7.50803112]
[1768753174952,0.14264498,142.11,142.08,7.50803112]
[1768753181657,2.27342918,142.11,142.08,7.50803112]
[1768753182977,2.27342918,142.11,142.06,2.1307842]
[1768753182978,2.27342918,142.09,142.06,0.46148358]
[1768753183149,2.1307842,142.08,142.06,0.46148358]
[1768753183744,2.1307842,142.08,142.05,7.50108225]
[1768753184465,2.1307842,142.08,142.06,0.46148358]
[1768753184670,0.14264498,142.09,142.06,0.46148358]
[1768753184964,2.1307842,142.08,142.06,0.46148358]
[1768753186649,7.18051074,142.09,142.06,0.46148358]
[1768753186970,2.1307842,142.08,142.06,0.46148358]
[1768753188965,9.31230688,142.09,142.06,0.46148358]
[1768753200282,2.27444112,142.09,142.06,0.46148358]
[1768753203686,7.18014825,142.1,142.07,0.47517221]
[1768753203884,2.27444112,142.1,142.07,0.47517221]
[1768753204184,17.69444112,142.12,142.08,0.47517221]
[1768753204674,7.03651886,142.12,142.08,0.47517221]
[1768753204868,9.168315,142.12,142.08,0.47517221]
[1768753205668,22.59865331,142.13,142.08,7.03808777]
[1768753205866,15.56264498,142.13,142.09,0.47517221]
[1768753206472,17.69444112,142.13,142.09,0.47517221]
[1768753206683,24.73025743,142.13,142.09,0.47517221]
[1768753207677,24.73025743,142.13,142.1,0.47517221]
[1768753207871,15.42,142.13,142.1,0.44517221]
[1768753209092,9.30995858,142.14,142.1,0.44517221]
[1768753209988,7.17816244,142.14,142.11,0.47517221]
[1768753212287,0.14264498,142.14,142.11,0.47517221]
[1768753214077,9.33944432,142.15,142.11,0.47517221]
[1768753218198,2.30444112,142.13,142.1,0.47517221]
[1768753218600,2.30444112,142.13,142.1,7.51243707]
[1768753219195,2.13179614,142.13,142.1,7.51243707]
[1768753219381,2.13179614,142.13,142.11,0.47517221]
[1768753219780,2.13179614,142.13,142.1,7.03726486]
[1768753219991,2.13179614,142.13,142.1,0.47517221]
[1768753220196,7.20823682,142.14,142.1,0.47517221]
[1768753220197,9.34003296,142.14,142.1,0.47517221]
[1768753221094,9.34003296,142.14,142.1,7.5123241]
[1768753221797,9.34003296,142.14,142.11,0.47517221]
[1768753223399,0.17264498,142.13,142.07,0.4921894]
[1768753223588,2.13179614,142.1,142.07,0.4921894]
[1768753223787,2.30444112,142.11,142.07,0.4921894]
[1768753224582,2.30444112,142.11,142.08,0.4921894]
[1768753227984,2.30444112,142.11,142.08,0.4621894]
[1768753228196,0.17264498,142.11,142.08,0.4621894]
[1768753228588,9.16848211,142.12,142.08,0.4621894]
[1768753228983,2.33444112,142.11,142.08,0.4621894]
[1768753230702,0.20264498,142.11,142.08,0.4621894]
[1768753230900,2.33444112,142.11,142.08,0.4621894]
[1768753231093,9.37112709,142.12,142.08,0.4621894]
[1768753234108,7.23933095,142.12,142.08,0.4621894]
[1768753234311,9.37112709,142.12,142.08,0.4621894]
[1768753236622,0.20264498,142.12,142.09,0.47353409]
[1768753236826,24.79044951,142.13,142.09,0.47353409]
[1768753237120,24.79044951,142.13,142.09,7.51131357]
[1768753237302,24.79044951,142.13,142.1,0.47353409]
[1768753239022,22.45600839,142.13,142.1,0.47353409]
[1768753239719,7.50530685,142.13,142.09,9.16957562]
[1768753240108,7.50530685,142.13,142.08,2.13179614]
[1768753241745,7.50530685,142.13,142.09,0.47353409]
[1768753242839,7.50530685,142.13,142.09,7.03775986]
[1768753243029,7.50530685,142.13,142.1,0.47353409]
[1768753243843,9.63710299,142.13,142.1,0.47353409]
[1768753244013,7.50530685,142.13,142.1,0.47353409]
[1768753244532,9.63710299,142.13,142.1,0.47353409]
[1768753248445,7.50530685,142.13,142.1,0.47353409]
[1768753248635,9.63710299,142.13,142.1,0.47353409]
[1768753250844,0.46929846,142.12,142.09,7.51129395]
[1768753251345,0.46929846,142.12,142.1,0.47353409]
[1768753251547,9.63575141,142.13,142.1,0.47353409]
[1768753253656,7.50530685,142.13,142.1,0.47353409]
[1768753253850,0.46929846,142.13,142.1,7.51078361]
[1768753254054,22.92874324,142.14,142.11,0.46304794]
[1768753254434,7.50874324,142.14,142.11,0.46304794]
[1768753260667,7.03489497,142.15,142.11,7.49981231]
[1768753260852,0.57334958,142.16,142.13,0.46304794]
[1768753261454,0.47334958,142.15,142.12,0.46304794]
[1768753262470,0.47334958,142.15,142.12,7.49929659]
[1768753265267,7.60774821,142.16,142.13,0.46304794]
[1768753265469,0.1,142.16,142.14,0.46304794]
[1768753266064,0.57334958,142.16,142.14,0.46304794]
[1768753266271,0.57334958,142.16,142.13,9.62913255]
[1768753268477,0.1,142.16,142.14,0.46304794]
[1768753269278,0.57334958,142.16,142.13,9.16608461]
[1768753269492,0.57334958,142.16,142.13,7.49868799]
[1768753270066,0.47334958,142.15,142.13,7.03564005]
[1768753271890,0.47334958,142.15,142.12,0.46304794]
[1768753271891,0.47334958,142.15,142.12,7.03630734]
[1768753272094,0.27617907,142.16,142.13,0.46304794]
[1768753272377,0.1,142.16,142.14,0.46304794]
[1768753272561,0.1,142.16,142.14,2.5934925]
[1768753273877,0.1,142.16,142.14,9.62873042]
[1768753274972,0.1,142.16,142.15,0.46304794]
[1768753278695,0.1,142.16,142.15,7.49787031]
[1768753279287,0.27617907,142.19,142.16,0.46304794]
[1768753280181,2.40662363,142.19,142.16,0.46304794]
[1768753281403,0.27617907,142.19,142.16,0.46304794]
[1768753283202,2.40662363,142.18,142.15,0.49317313]
[1768753283903,0.27617907,142.17,142.14,0.49317313]
[1768753284200,2.40662363,142.18,142.15,0.49317313]
[1768753286210,0.27617907,142.18,142.15,0.49317313]
[1768753289619,9.26342839,142.19,142.16,0.49317313]
[1768753289620,7.4091629,142.19,142.16,0.49317313]
[1768753290320,9.53960746,142.19,142.16,0.49317313]
[1768753290926,0.1,142.19,142.16,0.49317313]
[1768753291390,0.37617907,142.19,142.16,0.49317313]
[1768753293206,0.1,142.19,142.16,0.49317313]
[1768753294708,7.13288861,142.19,142.16,0.49317313]
[1768753296491,7.40906768,142.19,142.16,0.49317313]
[1768753302492,7.13288861,142.19,142.16,0.49317313]
[1768753306614,0.1,142.19,142.17,0.47154505]
[1768753309012,9.26242379,142.21,142.19,0.47154505]
[1768753309217,7.13197923,142.21,142.19,0.47154505]
[1768753310200,7.5081583,142.21,142.18,0.47154505]
[1768753311224,0.37617907,142.2,142.17,0.47154505]
[1768753311426,2.50662363,142.2,142.17,0.47154505]
[1768753312338,9.63860286,142.21,142.17,0.47154505]
[1768753312925,9.63620013,142.21,142.17,0.47154505]
[1768753316927,9.63620013,142.21,142.18,0.47679027]
[1768753320143,0.47617907,142.21,142.18,0.47679027]
[1768753320313,2.6042209,142.21,142.18,0.47679027]
[1768753321920,0.1,142.21,142.18,0.47679027]
[1768753322113,0.1,142.21,142.19,0.47679027]
[1768753322430,0.1,142.22,142.19,0.47679027]
[1768753323435,0.57617907,142.22,142.19,0.47679027]
[1768753323635,9.73567233,142.22,142.19,0.47679027]
[1768753324015,7.13145143,142.22,142.19,0.47679027]
[1768753324213,9.25949326,142.22,142.19,0.47679027]
[1768753324829,9.73567233,142.22,142.19,0.47679027]
[1768753325138,2.6042209,142.21,142.18,0.47679027]
[1768753326136,7.6076305,142.22,142.19,0.47679027]
[1768753326324,9.73567233,142.22,142.19,0.47679027]
[1768753326717,0.47617907,142.19,142.11,0.47679027]
[1768753327030,5.34408856,142.21,142.12,0.47679027]
[1768753327031,2.12804183,142.16,142.12,0.47679027]
[1768753327837,2.12804183,142.16,142.12,7.51292678]
[1768753328038,9.16155675,142.18,142.13,0.47679027]
[1768753329144,2.12804183,142.18,142.13,7.03575506]
[1768753329327,2.12804183,142.18,142.14,0.47679027]
[1768753330475,9.16165201,142.18,142.14,0.47679027]
[1768753330842,7.03361018,142.18,142.14,0.47679027]
[1768753331142,9.16165201,142.18,142.14,0.47679027]
[1768753335247,24.61149003,142.21,142.14,0.47679027]
[1768753335449,2.12804183,142.18,142.14,0.47679027]
[1768753335746,2.12804183,142.19,142.15,0.47679027]
[1768753336932,9.16104855,142.19,142.15,0.47679027]
[1768753337250,9.16104855,142.19,142.15,7.51137945]
[1768753337547,9.16104855,142.19,142.16,0.47679027]
[1768753338952,24.61149003,142.21,142.16,0.47679027]
[1768753339145,2.12804183,142.19,142.16,0.47679027]
[1768753340565,7.03282254,142.2,142.16,0.47679027]
[1768753340731,2.12804183,142.19,142.16,0.47679027]
[1768753341554,24.61149003,142.21,142.16,0.47679027]
[1768753341962,2.12804183,142.19,142.16,0.47679027]
[1768753342151,2.12804183,142.2,142.16,0.47679027]
[1768753342471,2.12804183,142.19,142.16,0.47679027]
[1768753342771,9.160776,142.2,142.16,0.48693034]
[1768753343743,2.12804183,142.19,142.16,0.48693034]
[1768753343945,9.16094853,142.19,142.16,0.48693034]
[1768753344545,7.0329067,142.19,142.16,0.48693034]
[1768753344747,9.16094853,142.19,142.16,0.48693034]
[1768753346870,2.12804183,142.18,142.16,0.48693034]
[1768753347873,9.16094853,142.19,142.16,0.48693034]
[1768753348655,2.22804183,142.22,142.17,0.48693034]
[1768753348854,2.22804183,142.22,142.18,0.48693034]
[1768753348855,0.1,142.22,142.18,0.48693034]
[1768753349472,7.13150837,142.22,142.18,0.48693034]
[1768753350160,9.2595502,142.22,142.18,0.48693034]
[1768753351984,9.16024393,142.21,142.18,0.48693034]
[1768753352170,7.0322021,142.21,142.18,0.48693034]
[1768753352373,2.12804183,142.2,142.18,0.48693034]
[1768753353172,7.0322021,142.21,142.18,0.48693034]
[1768753353381,2.12804183,142.2,142.18,0.48693034]
[1768753353885,9.16024393,142.21,142.18,0.48693034]
[1768753357908,2.12804183,142.2,142.18,0.48693034]
[1768753359012,7.0322021,142.21,142.18,0.48693034]
[1768753359213,9.16024393,142.21,142.18,0.48693034]
[1768753363713,7.0322021,142.21,142.18,0.48693034]
[1768753363920,9.16024393,142.21,142.18,0.48693034]
[1768753369090,0.1,142.22,142.19,0.45780558]
[1768753370726,0.1,142.22,142.21,0.45780558]
[1768753371026,0.1,142.22,142.2,15.85780558]
[1768753375205,0.1,142.22,142.21,0.45963583]
[1768753378029,9.25772157,142.24,142.21,0.45963583]
[1768753378530,7.13050318,142.24,142.21,0.45963583]
[1768753379640,9.25772157,142.24,142.21,0.45963583]
[1768753380341,7.13050318,142.24,142.21,0.45963583]
[1768753380636,9.25772157,142.24,142.21,0.45963583]
[1768753381714,7.13050318,142.24,142.21,0.45963583]
[1768753381916,9.25772157,142.24,142.21,0.45963583]
[1768753382418,2.32721839,142.22,142.2,15.4]
[1768753383740,2.12721839,142.21,142.2,15.4]
[1768753385936,9.15920209,142.21,142.19,0.45963583]
[1768753386115,2.12721839,142.2,142.18,15.85963583]
[1768753388750,2.12721839,142.2,142.18,0.45963583]
[1768753396546,9.35920209,142.21,142.18,0.45963583]
[1768753397838,7.2319837,142.21,142.18,0.45963583]
[1768753398039,9.35920209,142.21,142.18,0.45963583]
[1768753401242,2.32721839,142.19,142.16,15.85963583]
[1768753401558,2.26721835,142.19,142.16,15.85963583]
[1768753401762,2.12721839,142.19,142.16,15.4]
[1768753401959,2.12721839,142.19,142.17,0.45963583]
[1768753403173,2.06721838,142.19,142.17,0.45963583]
[1768753403543,2.12721839,142.19,142.17,0.45963583]
[1768753407869,9.16015427,142.19,142.17,0.45963583]
[1768753412568,2.12721839,142.18,142.15,0.48722878]
[1768753412759,2.12721839,142.18,142.16,0.48722878]
[1768753412760,2.06721838,142.18,142.16,0.48722878]
[1768753415778,7.03293588,142.19,142.17,0.48722878]
[1768753415954,9.16015427,142.19,142.17,0.48722878]
[1768753416873,9.64642761,142.19,142.17,0.48722878]
[1768753425988,9.64642761,142.19,142.16,0.45522768]
[1768753432983,9.64803955,142.19,142.16,0.45522768]
[1768753440210,7.51920922,142.19,142.16,0.45522768]
[1768753440509,9.64803955,142.19,142.16,0.45522768]
[1768753444097,9.58803955,142.19,142.16,0.45522768]
[1768753450519,9.52803955,142.19,142.16,0.45522768]
[1768753457727,9.16217973,142.18,142.16,0.45522768]
[1768753465639,7.0333494,142.18,142.16,0.45522768]
[1768753467231,7.5028989,142.18,142.16,0.45522768]
[1768753473539,9.63172923,142.18,142.16,0.45522768]
[1768753473846,0.4695495,142.16,142.12,0.45380686]
[1768753474045,2.59837983,142.15,142.13,15.4]
[1768753474349,2.12883033,142.14,142.13,15.4]
[1768753476755,2.59837983,142.15,142.13,15.4]
[1768753480042,2.59837983,142.15,142.12,0.45380686]
[1768753480043,9.63332822,142.15,142.12,15.85380686]
[1768753481456,2.59156369,142.14,142.1,0.49619696]
[1768753481629,0.46273336,142.12,142.1,15.89619696]
[1768753481832,2.59156369,142.13,142.1,15.89619696]
[1768753482040,0.46273336,142.13,142.1,15.89619696]
[1768753484549,0.40273331,142.13,142.1,15.89619696]
[1768753484831,0.34273331,142.13,142.1,15.89619696]
[1768753488836,2.47156364,142.13,142.1,15.89619696]
[1768753490247,0.34273331,142.13,142.11,0.49619696]
[1768753490759,2.47156364,142.13,142.11,0.49619696]
[1768753490960,0.34273331,142.13,142.11,0.49619696]
[1768753491338,0.28273326,142.13,142.11,0.49619696]
[1768753496350,2.41300502,142.13,142.11,0.49619696]
[1768753498176,2.35300502,142.13,142.11,0.49619696]
[1768753499682,0.22273326,142.13,142.11,0.49619696]
[1768753501272,19.71544334,142.17,142.12,0.45795116]
[1768753501273,0.48679519,142.16,142.12,0.45795116]
[1768753501572,0.48679519,142.15,142.12,0.45795116]
[1768753501978,2.61706695,142.15,142.13,15.42]
[1768753504476,0.48679519,142.13,142.1,7.49486138]
[1768753504657,2.61706695,142.13,142.12,15.42]
[1768753505276,2.61706695,142.13,142.1,22.91486138]
[1768753505773,2.13027176,142.12,142.1,22.91486138]
[1768753505976,2.61706695,142.11,142.08,0.45795116]
[1768753506283,2.61706695,142.11,142.08,15.87795116]
[1768753507084,7.03582783,142.13,142.08,0.45795116]
[1768753507085,2.61706695,142.1,142.08,0.45795116]
[1768753507376,2.61706695,142.1,142.08,15.42]
[1768753507575,2.61706695,142.1,142.06,0.45795116]
[1768753507576,0.48679519,142.08,142.06,0.45795116]
[1768753507783,0.48679519,142.08,142.06,15.87795116]
[1768753507973,2.61706695,142.09,142.06,15.87795116]
[1768753508374,2.61706695,142.09,142.06,22.91719647]
[1768753510282,0.48679519,142.09,142.06,22.91719647]
[1768753510587,2.61706695,142.09,142.06,22.91719647]
[1768753512091,2.55706694,142.09,142.06,22.91719647]
[1768753513573,2.13027176,142.09,142.07,0.45795116]
[1768753514184,0.48679519,142.08,142.06,7.49719647]
[1768753514361,2.13027176,142.09,142.06,22.91719647]
[1768753516180,2.13027176,142.1,142.06,22.91719647]
[1768753516379,0.48679519,142.09,142.06,22.91719647]
[1768753517280,0.48679519,142.09,142.07,0.45795116]
[1768753517483,2.61706695,142.1,142.07,0.45795116]
[1768753517669,0.48679519,142.1,142.07,0.45795116]
[1768753518585,0.48679519,142.1,142.07,7.4966785]
[1768753518787,0.48679519,142.12,142.08,0.45795116]
[1768753518983,2.61706695,142.12,142.09,15.87795116]
[1768753519880,2.61706695,142.11,142.09,15.42]
[1768753520086,2.61706695,142.1,142.09,15.42]
[1768753520684,2.13027176,142.1,142.09,15.42]
[1768753520865,2.61706695,142.1,142.09,15.42]
[1768753521193,0.48679519,142.09,142.08,15.42]
[1768753521485,2.61706695,142.09,142.08,15.42]
[1768753522293,2.61706695,142.09,142.06,22.91705537]
[1768753522782,2.58820189,142.08,142.05,7.51147574]
[1768753522980,2.58820189,142.08,142.06,15.42]
[1768753523181,0.45793013,142.08,142.06,15.42]
[1768753523392,0.45793013,142.1,142.07,0.47170102]
[1768753524789,0.45793013,142.1,142.07,7.5102747]
[1768753529681,2.58820189,142.1,142.07,7.5102747]
[1768753533195,0.45793013,142.1,142.07,7.5102747]
[1768753536796,0.45793013,142.1,142.07,0.47170102]
[1768753536985,2.58820189,142.1,142.07,0.47170102]
[1768753538393,9.62552194,142.1,142.07,0.47170102]
[1768753538691,0.46495241,142.08,142.06,15.42]
[1768753538880,7.50335345,142.08,142.05,0.46006637]
[1768753539074,9.63362521,142.08,142.06,15.42]
[1768753539595,0.46495241,142.07,142.05,0.46006637]
[1768753539790,0.46495241,142.07,142.05,15.88006637]
[1768753543801,2.59522417,142.06,142.04,15.42]
[1768753544283,2.59522417,142.06,142.04,15.88006637]
[1768753545804,9.63451307,142.06,142.04,0.46006637]
[1768753545982,9.63451307,142.06,142.04,15.88006637]
[1768753546183,9.63451307,142.06,142.04,15.42]
[1768753550407,0.46495241,142.05,142.03,15.62]
[1768753550608,0.46495241,142.05,142.03,0.2]
[1768753550908,2.59522417,142.05,142.03,15.62]
[1768753551412,0.46495241,142.05,142.03,16.08006637]
[1768753551991,7.50480981,142.05,142.03,16.08006637]
[1768753552387,7.50480981,142.05,142.03,15.62]
[1768753552810,9.63508157,142.05,142.03,15.62]
[1768753554918,9.63763176,142.05,142.03,15.62]
[1768753555110,0.46075636,142.04,142.03,15.12]
[1768753555299,9.4526792,142.05,142.03,15.12]
[1768753557116,9.4526792,142.05,142.02,0.66578173]
[1768753560315,7.31985725,142.05,142.02,0.66578173]
[1768753560509,9.4526792,142.05,142.02,0.66578173]
[1768753560712,9.39267919,142.05,142.02,0.66578173]
[1768753562440,6.97985739,142.05,142.03,0.46578173]
[1768753562717,20.00797683,142.09,142.05,0.46578173]
[1768753562924,7.03828828,142.08,142.06,0.46578173]
[1768753565099,7.31828813,142.08,142.05,0.46578173]
[1768753565919,9.45111008,142.08,142.05,0.46578173]
[1768753569418,7.31828813,142.08,142.05,0.46578173]
[1768753569721,9.45111008,142.08,142.05,0.46578173]
[1768753580028,7.31828813,142.08,142.05,0.46578173]
[1768753580210,9.45111008,142.08,142.05,0.46578173]
[1768753592640,7.03828828,142.08,142.05,0.46578173]
[1768753597649,9.17111023,142.08,142.05,0.46578173]
[1768753598746,7.03828828,142.08,142.05,0.46578173]
[1768753599049,9.17111023,142.08,142.05,0.46578173]
[1768753611639,9.45111008,142.08,142.05,0.46578173]
[1768753612261,2.4128218,142.07,142.04,15.88754681]
[1768753612466,0.27999985,142.06,142.04,15.42]
[1768753612759,9.45185579,142.07,142.04,0.45563576]
[1768753614064,2.13282195,142.06,142.04,0.45563576]
[1768753614452,2.4128218,142.06,142.03,0.45563576]
[1768753614758,9.45253066,142.06,142.03,15.87563576]
[1768753616869,9.45242254,142.06,142.03,15.87563576]
[1768753617163,0.27999985,142.04,142.03,15.42]
[1768753617351,2.13271383,142.05,142.03,15.42]
[1768753617565,2.13271383,142.05,142.03,15.87563576]
[1768753620567,9.4525647,142.05,142.02,0.65563576]
[1768753622345,2.41271368,142.04,142.02,0.2]
[1768753622550,2.41271368,142.04,142.01,0.65563576]
[1768753622551,2.41271368,142.03,142.01,0.2]
[1768753622769,2.13271383,142.02,142.01,0.17000001]
[1768753623066,2.41271368,142.02,141.99,15.87563576]
[1768753623752,9.45425596,142.02,141.99,15.87563576]
[1768753624056,2.41271368,142.01,141.99,15.42]
[1768753624256,0.27999985,142.01,141.98,0.45563576]
[1768753624566,2.41271368,142.01,141.98,0.45563576]
[1768753625668,9.45472198,142.01,141.98,0.45563576]
[1768753628775,7.32200815,142.01,141.98,0.45563576]
[1768753628969,9.45472198,142.01,141.98,0.45563576]
[1768753631270,7.32200815,142.01,141.98,0.45563576]
[1768753631576,9.45472198,142.01,141.98,0.45563576]
[1768753634182,7.32200815,142.01,141.98,0.45563576]
[1768753634381,9.45472198,142.01,141.98,0.45563576]
[1768753635885,7.0420083,142.01,141.98,0.45563576]
[1768753636062,7.04142624,142.02,141.99,0.45563576]
[1768753643191,7.04092049,142.03,142.0,0.49413123]
[1768753643891,7.04092049,142.03,142.0,15.42]
[1768753644187,7.04092049,142.03,142.01,0.49413123]
[1768753646392,7.0404599,142.04,142.02,0.49413123]
[1768753646692,7.03991301,142.05,142.02,0.49413123]
[1768753647388,9.45262669,142.05,142.02,0.49413123]